bitfinex-derivatives/quotes_SOLF0:USTF0_20250125
["timestamp","ask_amount","ask_price","bid_price","bid_amount"]
[1737823411492,15.27007974,255.19,255.01,4.82510176]
[1737823411697,15.27007974,255.19,255.01,1.3481]
[1737823411889,15.27007974,255.19,255.01,5.61651119]
[1737823412094,3.9194,255.18,255.07,3.9209]
[1737823412398,0.02956081,255.13,255.07,0.02909233]
[1737823415093,3.9206,255.1,255.07,0.02909233]
[1737823415895,0.02956081,255.13,255.07,0.02909233]
[1737823416503,0.02956081,255.13,255.07,3.95009233]
[1737823416701,0.02956081,255.13,255.07,0.02909233]
[1737823417993,0.02956081,255.13,255.07,3.94999233]
[1737823418297,0.02956081,255.13,255.07,0.02909233]
[1737823418700,3.9204,255.12,255.07,0.02909233]
[1737823418998,0.02956081,255.13,255.07,0.02909233]
[1737823420308,0.02956081,255.13,255.09,3.9207]
[1737823421606,0.02956081,255.13,255.1,3.9205]
[1737823422308,0.02956081,255.13,255.08,3.9207]
[1737823422504,3.94976081,255.13,255.07,0.02909233]
[1737823422705,0.02956081,255.13,255.07,0.02909233]
[1737823423008,15.27007974,255.32,255.17,3.9195]
[1737823423609,3.9181,255.27,255.17,3.9195]
[1737823423804,15.27007974,255.32,255.1,15.27007974]
[1737823424002,0.02988592,255.25,255.19,15.29588252]
[1737823424206,15.27007974,255.4,255.2,2.6518]
[1737823424509,15.27007974,255.36,255.2,6.5708]
[1737823424708,15.27007974,255.36,255.2,2.6518]
[1737823425507,3.94452146,255.31,255.25,0.02548427]
[1737823426104,0.02712146,255.31,255.25,0.02548427]
[1737823427109,3.9176,255.3,255.25,0.02548427]
[1737823427811,3.918,255.27,255.25,0.02548427]
[1737823429109,0.02712146,255.31,255.25,0.02548427]
[1737823429412,3.9178,255.28,255.25,0.02548427]
[1737823430312,3.9176,255.3,255.25,0.02548427]
[1737823430710,0.02712146,255.31,255.25,0.02548427]
[1737823430911,3.9178,255.28,255.25,0.02548427]
[1737823431107,0.02712146,255.31,255.25,8.427e-05]
[1737823431712,3.918,255.27,255.25,8.427e-05]
[1737823436520,3.9181,255.26,255.25,8.427e-05]
[1737823440922,3.9179,255.28,255.25,8.427e-05]
[1737823441227,0.02712146,255.31,255.25,8.427e-05]
[1737823446125,3.9181,255.26,255.25,8.427e-05]
[1737823452029,3.9176,255.3,255.25,8.427e-05]
[1737823452225,0.02712146,255.31,255.25,8.427e-05]
[1737823452827,3.9175,255.3,255.25,3.91828427]
[1737823453028,3.9175,255.3,255.25,8.427e-05]
[1737823453830,3.918,255.27,255.25,8.427e-05]
[1737823455236,1.3014,255.26,255.25,8.427e-05]
[1737823456735,1.3014,255.26,255.02,4.76989971]
[1737823456931,15.27007974,255.18,255.0,4.76989971]
[1737823457236,2.6161,255.17,255.0,8.69189971]
[1737823457433,3.9211,255.07,255.0,3.922]
[1737823457829,0.02659914,255.06,255.01,0.02957611]
[1737823458032,3.9217,255.03,254.94,19.19177974]
[1737823458231,0.02504934,255.06,255.01,0.0293401]
[1737823459741,3.9215,255.04,255.01,0.0293401]
[1737823460240,3.9218,255.03,255.01,0.0293401]
[1737823460636,0.02504934,255.06,255.01,0.0293401]
[1737823462438,0.02504934,255.06,254.86,17.82907974]
[1737823462640,15.27007974,255.06,254.86,17.82907974]
[1737823463445,3.9221,255.01,254.92,3.9233]
[1737823463641,0.02882157,254.99,254.93,0.02811848]
[1737823464344,0.02882157,254.99,254.93,3.95121848]
[1737823466638,0.02882157,254.99,254.94,3.923]
[1737823466842,0.02882157,254.99,254.93,0.02811848]
[1737823467039,0.02882157,254.99,254.94,3.9229]
[1737823467237,0.02882157,254.99,254.93,0.02811848]
[1737823467640,0.02882157,254.99,254.94,3.923]
[1737823467838,0.02882157,254.99,254.93,0.02811848]
[1737823468239,0.02882157,254.99,254.94,3.9229]
[1737823468545,0.02882157,254.99,254.93,0.02811848]
[1737823469045,0.02882157,254.99,254.95,3.9228]
[1737823470044,0.02882157,254.99,254.93,3.95111848]
[1737823471248,3.9224,254.98,254.93,3.95111848]
[1737823471451,9.59711047,254.96,254.86,3.9242]
[1737823471653,3.9235,254.91,254.81,9.59711047]
[1737823471843,9.59711047,254.96,254.78,4.0081]
[1737823472248,9.59711047,254.92,254.78,4.0081]
[1737823472749,9.59711047,254.92,254.82,0.02751469]
[1737823472750,0.02820927,254.88,254.82,0.02751469]
[1737823473549,9.62531974,254.88,254.82,0.02751469]
[1737823473745,0.02820927,254.88,254.82,0.02751469]
[1737823475250,0.02820927,254.88,254.82,3.95231469]
[1737823476243,3.95220927,254.88,254.82,3.95231469]
[1737823476448,0.02820927,254.88,254.84,3.9245]
[1737823476949,0.02820927,254.88,254.82,0.02751469]
[1737823477149,3.95220927,254.88,254.82,0.02751469]
[1737823477551,0.02820927,254.88,254.82,0.02751469]
[1737823478252,0.02820927,254.88,254.82,3.95231469]
[1737823478750,0.02820927,254.88,254.82,0.02751469]
[1737823478950,0.02820927,254.88,254.85,3.9243]
[1737823479344,0.02820927,254.88,254.82,0.02751469]
[1737823481353,0.02820927,254.88,254.84,3.9245]
[1737823482451,0.02820927,254.88,254.82,0.02751469]
[1737823485855,3.9247,254.83,254.82,0.02751469]
[1737823488753,16.7116538,254.87,254.71,4.76989971]
[1737823488957,16.7116538,254.87,254.69,4.76989971]
[1737823489158,3.9254,254.79,254.73,3.9262]
[1737823489654,16.7116538,254.87,254.68,8.66509971]
[1737823489957,0.02620751,254.79,254.73,0.02628632]
[1737823490158,3.9257,254.77,254.73,0.02628632]
[1737823490358,0.02620751,254.79,254.73,0.02628632]
[1737823490859,0.02620751,254.79,254.75,3.9258]
[1737823491061,0.02620751,254.79,254.73,0.02628632]
[1737823492361,0.02620751,254.79,254.75,3.9258]
[1737823492559,0.02620751,254.79,254.73,0.02628632]
[1737823492854,15.3755538,254.95,254.73,15.40184012]
[1737823493056,15.3755538,254.91,254.73,15.3755538]
[1737823493257,15.3755538,254.91,254.69,15.3755538]
[1737823493460,15.3755538,254.87,254.76,3.9257]
[1737823493655,15.3755538,254.87,254.74,4.45544378]
[1737823493861,15.3755538,254.87,254.79,3.9253]
[1737823494063,0.0285521,254.83,254.79,3.9253]
[1737823494359,3.9242,254.87,254.74,4.45544378]
[1737823494559,0.02654951,254.84,254.78,0.02805709]
[1737823496457,9.60699527,254.91,254.82,3.9248]
[1737823496658,3.9237,254.9,254.79,9.60699527]
[1737823496860,9.60699527,254.95,254.8,2.7184]
[1737823497061,9.60699527,254.91,254.8,2.7184]
[1737823497257,3.9245,254.85,254.8,2.7184]
[1737823497456,9.60699527,254.87,254.8,2.7184]
[1737823497655,0.02771033,254.85,254.8,2.74442646]
[1737823498058,3.9248,254.83,254.8,2.74442646]
[1737823500564,0.02771033,254.85,254.67,9.60699527]
[1737823500763,9.60699527,254.87,254.68,2.5721]
[1737823500967,3.9256,254.78,254.72,3.9264]
[1737823501463,9.60699527,254.78,254.68,1.3388]
[1737823501671,9.60699527,254.7,254.58,8.71797689]
[1737823502177,3.927,254.69,254.63,3.9278]
[1737823502877,3.95473334,254.69,254.63,3.95440786]
[1737823503077,0.02773334,254.69,254.63,3.95440786]
[1737823503784,0.02773334,254.69,254.63,0.02660786]
[1737823504671,0.02773334,254.69,254.64,3.9276]
[1737823504975,9.60699527,254.82,254.64,9.60699527]
[1737823506177,0.02536481,254.76,254.7,0.02933806]
[1737823506376,0.02536481,254.76,254.72,3.9263]
[1737823506576,0.02536481,254.76,254.7,0.02933806]
[1737823507280,0.02536481,254.76,254.7,3.95603806]
[1737823507780,0.02536481,254.76,254.7,0.02933806]
[1737823508078,0.02536481,254.76,254.72,3.9263]
[1737823508279,0.02536481,254.76,254.7,0.02933806]
[1737823508679,0.02536481,254.76,254.72,3.9264]
[1737823511084,0.02536481,254.76,254.73,3.9262]
[1737823511484,0.02536481,254.76,254.7,0.02933806]
[1737823512586,0.02536481,254.76,254.73,3.9261]
[1737823512779,9.60699527,254.86,254.7,2.68923806]
[1737823513186,3.9252,254.8,254.75,3.9259]
[1737823513388,3.9252,254.8,254.7,2.6599]
[1737823513787,3.925,254.82,254.7,2.6599]
[1737823514088,0.02499902,254.78,254.72,0.0288938]
[1737823514683,0.02499902,254.78,254.75,3.9258]
[1737823515888,0.02499902,254.78,254.77,3.9256]
[1737823516290,0.02499902,254.78,254.72,9.63588907]
[1737823517290,0.02499902,254.78,254.75,3.9258]
[1737823517989,0.02499902,254.78,254.72,9.63588907]
[1737823519296,0.02499902,254.78,254.77,3.9256]
[1737823526000,0.02499902,254.78,254.72,0.0288938]
[1737823526398,9.63199429,254.78,254.72,0.0288938]
[1737823526700,3.9262,254.74,254.72,0.0288938]
[1737823527001,3.9272,254.67,254.62,2.5905]
[1737823527199,9.60699527,254.7,254.55,9.60699527]
[1737823527406,9.60699527,254.7,254.55,12.21679527]
[1737823527901,3.9273,254.67,254.6,3.9282]
[1737823528100,0.02613844,254.65,254.6,3.95308636]
[1737823529095,0.02613844,254.65,254.63,3.9278]
[1737823529493,2.6533,254.77,254.6,0.02488636]
[1737823529698,3.926,254.75,254.68,3.927]
[1737823530000,2.6533,254.77,254.63,9.60699527]
[1737823530399,9.60699527,254.78,254.63,9.60699527]
[1737823530802,0.02775307,254.73,254.68,0.03009553]
[1737823532998,9.60699527,254.71,254.55,2.6098]
[1737823533601,3.9273,254.67,254.57,3.9286]
[1737823533800,9.60699527,254.71,254.57,3.9286]
[1737823534001,9.60699527,254.71,254.56,4.69035828]
[1737823534196,0.02515251,254.67,254.61,0.02699261]
[1737823535403,0.02515251,254.67,254.63,3.9278]
[1737823535603,0.02515251,254.67,254.61,0.02699261]
[1737823536095,0.02515251,254.67,254.62,3.9279]
[1737823536303,0.02515251,254.67,254.61,0.02699261]
[1737823536906,3.9274,254.66,254.61,0.02699261]
[1737823537499,3.9274,254.66,254.61,3.95509261]
[1737823538501,0.02515251,254.67,254.61,0.02699261]
[1737823538705,0.02515251,254.67,254.62,9.60699527]
[1737823539199,9.60699527,254.8,254.66,9.60699527]
[1737823539600,3.9256,254.78,254.72,3.9264]
[1737823539799,9.60699527,254.84,254.62,6.17500885]
[1737823539999,3.9247,254.84,254.77,3.9256]
[1737823540309,0.02881682,254.83,254.78,0.02673562]
[1737823540706,3.9252,254.8,254.78,0.02673562]
[1737823543506,3.925,254.82,254.78,0.02673562]
[1737823544011,3.95361682,254.83,254.78,0.02673562]
[1737823544211,0.02881682,254.83,254.78,0.02673562]
[1737823547011,3.9249,254.82,254.78,0.02673562]
[1737823547212,0.02881682,254.83,254.78,0.02673562]
[1737823547614,3.925,254.81,254.78,0.02673562]
[1737823550612,3.9253,254.79,254.78,0.02673562]
[1737823551506,3.9253,254.79,254.78,3.562e-05]
[1737823551904,5.2556,254.79,254.78,3.562e-05]
[1737823554010,3.9253,254.79,254.78,3.562e-05]
[1737823554407,0.02881682,254.83,254.78,3.562e-05]
[1737823556314,3.9253,254.79,254.78,3.562e-05]
[1737823560615,9.60699527,254.8,254.62,1.3208]
[1737823560815,9.60699527,254.74,254.62,1.3208]
[1737823561118,3.9268,254.7,254.62,1.3208]
[1737823561619,9.60699527,254.74,254.6,1.3194]
[1737823561917,3.95238107,254.69,254.63,0.02924911]
[1737823562121,3.95238107,254.69,254.64,3.9276]
[1737823562514,3.95238107,254.69,254.63,0.02924911]
[1737823562818,0.02548107,254.69,254.68,3.927]
[1737823563319,0.02548107,254.69,254.67,3.9271]
[1737823564119,3.95238107,254.69,254.65,3.9274]
[1737823564323,3.95238107,254.69,254.63,0.02924911]
[1737823564924,3.9274,254.66,254.63,0.02924911]
[1737823565122,0.02548107,254.69,254.63,0.02924911]
[1737823566621,0.02548107,254.69,254.68,3.927]
[1737823566912,9.60699527,254.86,254.66,9.60699527]
[1737823567119,3.9251,254.81,254.75,3.9259]
[1737823567422,9.60699527,254.86,254.7,9.60699527]
[1737823567818,3.9249,254.82,254.76,3.9258]
[1737823568017,0.02579581,254.81,254.76,3.9258]
[1737823568824,3.9257,254.77,254.75,0.0288767]
[1737823572022,3.9257,254.77,254.75,7.67e-05]
[1737823573526,6.5985,254.77,254.75,7.67e-05]
[1737823575624,2.6728,254.77,254.75,7.67e-05]
[1737823575822,3.9258,254.76,254.75,7.67e-05]
[1737823577126,3.9269,254.69,254.64,3.9275]
[1737823577322,2.6728,254.77,254.61,2.5984]
[1737823577522,2.6728,254.77,254.65,3.9274]
[1737823577723,3.9261,254.75,254.62,9.60699527]
[1737823577926,9.60699527,254.78,254.62,9.60699527]
[1737823578122,9.60699527,254.78,254.66,3.9272]
[1737823578321,0.02911544,254.73,254.67,0.02703193]
[1737823580225,3.9264,254.72,254.67,0.02703193]
[1737823580427,0.02911544,254.73,254.67,0.02703193]
[1737823581229,3.95551544,254.73,254.68,3.927]
[1737823581428,0.02911544,254.73,254.67,0.02703193]
[1737823583934,3.9269,254.69,254.67,0.02703193]
[1737823584833,0.02911544,254.73,254.69,3.9269]
[1737823585434,3.95541544,254.73,254.67,0.02703193]
[1737823585838,0.02911544,254.73,254.67,0.02703193]
[1737823586638,3.9264,254.72,254.68,3.9269]
[1737823586838,3.9264,254.72,254.67,0.02703193]
[1737823587744,3.927,254.68,254.67,0.02703193]
[1737823592140,3.9281,254.61,254.55,4.86660132]
[1737823592538,9.60699527,254.65,254.55,4.86660132]
[1737823592842,3.9286,254.58,254.55,4.86660132]
[1737823593035,3.9286,254.58,254.53,4.86660132]
[1737823593341,0.02623456,254.58,254.53,4.89114407]
[1737823594142,0.02623456,254.58,254.53,0.02454275]
[1737823594541,3.95483456,254.58,254.53,0.02454275]
[1737823594742,0.02623456,254.58,254.53,0.02454275]
[1737823595743,0.02623456,254.58,254.54,3.9291]
[1737823596343,0.02623456,254.58,254.53,0.02454275]
[1737823596644,3.9287,254.57,254.53,0.02454275]
[1737823596942,3.9289,254.56,254.53,0.02454275]
[1737823598645,0.02623456,254.58,254.53,0.02454275]
[1737823598844,3.9292,254.54,254.53,0.02454275]
[1737823600241,3.929,254.55,254.53,0.02454275]
[1737823601235,0.02623456,254.58,254.53,0.02454275]
[1737823602040,3.9292,254.54,254.53,0.02454275]
[1737823602241,9.60699527,254.54,254.42,4.87536549]
[1737823602444,9.60699527,254.54,254.43,4.92151402]
[1737823602646,9.60699527,254.54,254.44,4.92151402]
[1737823602847,9.60699527,254.54,254.39,4.87536549]
[1737823603145,3.9298,254.5,254.45,3.9305]
[1737823603338,0.02571656,254.49,254.45,3.9305]
[1737823604546,0.02571656,254.49,254.46,3.9304]
[1737823604946,0.02571656,254.49,254.43,4.87536549]
[1737823605145,3.9304,254.46,254.43,4.87536549]
[1737823605447,0.02571656,254.49,254.44,21.74835717]
[1737823605648,3.95581656,254.49,254.44,21.74835717]
[1737823606147,0.02571656,254.49,254.39,4.87536549]
[1737823606346,0.02571656,254.49,254.4,16.44477028]
[1737823606543,0.02571656,254.49,254.39,4.87536549]
[1737823606746,0.02571656,254.49,254.4,16.44463927]
[1737823606945,3.95571656,254.49,254.43,3.9308]
[1737823607445,3.95571656,254.49,254.44,3.9307]
[1737823607645,0.02571656,254.49,254.38,14.48236076]
[1737823607853,0.02571656,254.49,254.41,2.6749]
[1737823608144,0.02571656,254.49,254.42,21.71677757]
[1737823608545,3.9301,254.48,254.42,25.64767757]
[1737823608752,0.02571656,254.49,254.42,25.64767757]
[1737823608946,0.02571656,254.49,254.42,3.9309]
[1737823609350,3.9301,254.48,254.42,3.9309]
[1737823609753,3.9301,254.48,254.43,3.9309]
[1737823610250,0.02571656,254.49,254.41,2.6749]
[1737823611150,0.02571656,254.49,254.34,9.60699527]
[1737823611454,9.60699527,254.42,254.33,4.87536549]
[1737823611948,0.02911899,254.4,254.33,4.87536549]
[1737823612155,0.02911899,254.4,254.26,9.60699527]
[1737823612355,0.02911899,254.4,254.34,3.9322]
[1737823612558,0.02911899,254.4,254.26,9.60699527]
[1737823612854,0.02911899,254.4,254.34,3.9322]
[1737823613053,0.02911899,254.4,254.26,9.60699527]
[1737823613253,0.02911899,254.4,254.27,34.48968818]
[1737823613457,0.02911899,254.4,254.27,21.68795508]
[1737823613654,0.02911899,254.4,254.28,4.92371541]
[1737823613854,0.02911899,254.4,254.29,4.92371541]
[1737823614153,0.02911899,254.4,254.3,4.92369613]
[1737823614349,0.02911899,254.4,254.29,12.25840939]
[1737823614557,0.02911899,254.4,254.3,4.92369645]
[1737823614752,0.02911899,254.4,254.31,4.71477284]
[1737823615050,0.02911899,254.4,254.34,3.9323]
[1737823616258,3.9315,254.39,254.31,3.9327]
[1737823616454,0.02911899,254.4,254.31,3.9327]
[1737823616852,3.9318,254.37,254.31,3.9327]
[1737823617056,9.60699527,254.38,254.29,3.933]
[1737823617351,9.60699527,254.38,254.24,4.87536549]
[1737823617557,0.02796723,254.36,254.28,3.9331]
[1737823617754,0.02796723,254.36,254.24,4.87536549]
[1737823617957,0.02796723,254.36,254.26,9.60699527]
[1737823618156,0.02796723,254.36,254.27,4.92470151]
[1737823618358,0.02796723,254.36,254.28,4.92470151]
[1737823618561,0.02796723,254.36,254.29,4.92470151]
[1737823618753,0.02796723,254.36,254.29,16.17187921]
[1737823618958,0.02796723,254.36,254.29,12.23887921]
[1737823619459,11.79,254.33,254.17,4.85175021]
[1737823619654,14.57,254.35,254.23,0.92547641]
[1737823619859,14.57,254.35,254.11,2.6097]
[1737823620054,9.60699527,254.21,254.12,4.92707736]
[1737823620354,9.60699527,254.21,254.13,4.92707736]
[1737823620660,0.02539234,254.19,254.11,2.6097]
[1737823621361,0.02539234,254.19,254.12,4.92706486]
[1737823621556,9.60699527,254.13,254.02,4.85064791]
[1737823621758,9.60699527,254.13,254.01,2.6153]
[1737823621958,9.60699527,254.17,254.03,12.81177675]
[1737823622155,0.02573016,254.1,254.09,3.9361]
[1737823622457,9.60699527,254.17,254.03,9.60699527]
[1737823622658,9.60699527,254.17,254.04,22.66649811]
[1737823622859,9.60699527,254.17,254.07,3.9364]
[1737823623355,9.60699527,254.13,254.01,2.6153]
[1737823623561,13.54259527,254.13,254.09,0.02537749]
[1737823624063,9.60699527,254.13,254.09,0.02537749]
[1737823624265,9.60699527,254.13,253.93,373.6969112]
[1737823624460,9.60699527,254.09,253.99,1.3267]
[1737823624657,9.60699527,254.09,254.0,4.92939199]
[1737823624865,9.60699527,254.09,253.99,1.3267]
[1737823625164,9.60699527,254.09,254.0,4.92959742]
[1737823625358,0.02745313,254.07,253.99,1.3267]
[1737823625559,9.60699527,254.05,253.99,3.9377]
[1737823625864,9.60699527,254.05,253.92,2.6688]
[1737823626165,9.60699527,254.01,253.93,26.31592395]
[1737823626464,9.63642243,254.01,253.94,12.81731714]
[1737823626763,9.63642243,254.01,253.95,4.92973736]
[1737823626962,9.63642243,254.01,253.92,2.6688]
[1737823627164,9.63642243,254.01,253.93,12.81916864]
[1737823627362,9.60699527,253.97,253.94,4.93044604]
[1737823627660,3.9383,253.96,253.87,3.9395]
[1737823627964,9.60699527,253.91,253.88,12.82002496]
[1737823628263,9.60699527,253.91,253.89,12.82002496]
[1737823628456,9.60699527,253.91,253.9,4.93077883]
[1737823629463,9.60699527,253.91,253.86,3.9397]
[1737823629762,9.60699527,253.91,253.87,12.82200918]
[1737823629957,9.60699527,253.91,253.89,3.9391]
[1737823631266,9.60699527,253.91,253.83,2.5943]
[1737823631464,9.60699527,253.87,253.84,26.33742972]
[1737823631764,9.60699527,253.87,253.85,26.32055105]
[1737823632063,9.60699527,253.87,253.86,26.32055105]
[1737823632267,9.60699527,253.91,253.86,36.54801399]
[1737823632459,9.60699527,253.91,253.87,27.51911833]
[1737823632657,9.60699527,253.91,253.88,22.68583292]
[1737823632857,9.60699527,253.91,253.87,16.33158039]
[1737823633065,9.60699527,253.91,253.88,4.93170022]
[1737823633266,9.60699527,253.91,253.87,11.49829498]
[1737823633466,9.60699527,253.91,253.88,22.68582029]
[1737823633665,9.60699527,253.91,253.89,12.82242016]
[1737823633870,9.60699527,253.91,253.85,4.83328541]
[1737823634167,9.60699527,253.91,253.86,26.29564986]
[1737823634368,9.60699527,253.91,253.87,26.29564986]
[1737823634568,9.60699527,253.91,253.88,22.6851477]
[1737823634765,9.60699527,253.91,253.86,4.80708079]
[1737823635062,9.60699527,253.91,253.88,4.39410493]
[1737823635267,9.60699527,253.91,253.88,9.20118572]
[1737823635968,13.54599527,253.91,253.88,4.80708079]
[1737823636168,9.60699527,253.91,253.88,4.80708079]
[1737823637470,3.96699394,253.92,253.88,4.80708079]
[1737823638272,0.02809394,253.92,253.88,4.78713708]
[1737823638569,9.60699527,253.95,253.9,4.78713708]
[1737823638963,9.60699527,253.99,253.89,24.89769345]
[1737823639266,9.60699527,253.99,253.91,4.78713708]
[1737823639471,9.60699527,253.99,253.91,4.85182836]
[1737823639668,0.02598107,253.98,253.92,0.02884781]
[1737823640172,0.02598107,253.98,253.92,4.81598489]
[1737823640370,0.02598107,253.98,253.93,43.92666037]
[1737823640671,0.02598107,253.98,253.94,43.90932022]
[1737823640967,9.60699527,254.07,253.94,29.94762085]
[1737823641172,9.60699527,254.07,253.99,4.77312182]
[1737823641373,9.60699527,254.07,253.98,4.77312182]
[1737823641568,9.60699527,254.03,253.99,4.85182836]
[1737823641970,9.60699527,254.03,253.98,4.77312182]
[1737823642270,9.60699527,254.03,253.97,4.85182836]
[1737823642571,9.60699527,253.99,253.97,4.85182836]
[1737823642767,13.54479527,253.99,253.93,4.85182836]
[1737823642962,13.54479527,253.99,253.98,0.02985843]
[1737823642963,9.60699527,253.99,253.98,0.02985843]
[1737823643163,9.60699527,254.04,253.98,0.02985843]
[1737823643366,0.03023591,254.01,253.98,0.02985843]
[1737823644070,3.96763591,254.01,253.98,0.02985843]
[1737823644868,0.03023591,254.01,253.98,0.02985843]
[1737823645170,13.54459527,254.0,253.98,0.02985843]
[1737823647370,13.54459527,254.0,253.98,0.00176449]
[1737823650076,9.60699527,254.0,253.98,0.00176449]
[1737823650875,0.03023591,254.01,253.98,0.00176449]
[1737823651875,3.9376,254.0,253.98,0.00176449]
[1737823653082,13.54459527,254.0,253.98,0.00176449]
[1737823655775,3.9389,253.92,253.9,4.85182836]
[1737823655974,3.9389,253.92,253.9,2.836e-05]
[1737823656879,3.9389,253.92,253.88,0.02497045]
[1737823657075,9.63534536,253.94,253.88,0.02497045]
[1737823657283,0.02835009,253.94,253.89,61.72211326]
[1737823657479,0.02835009,253.94,253.89,8.62781283]
[1737823657673,0.02835009,253.94,253.89,9.93061283]
[1737823657882,0.02835009,253.94,253.9,61.71609639]
[1737823658081,0.02835009,253.94,253.91,61.71388194]
[1737823658380,0.02835009,253.94,253.9,8.62781283]
[1737823658780,0.02835009,253.94,253.89,11.17031283]
[1737823659282,0.02835009,253.94,253.89,11.20363798]
[1737823660079,3.9386,253.93,253.89,2.5425]
[1737823660383,0.02835009,253.94,253.89,11.20363798]
[1737823660879,0.02835009,253.94,253.9,61.8202842]
[1737823661079,0.02835009,253.94,253.9,33.80027865]
[1737823661280,0.02835009,253.94,253.9,13.49566915]
[1737823661479,3.96685009,253.94,253.9,13.49566915]
[1737823661685,0.02835009,253.94,253.9,13.49566915]
[1737823662281,9.60699527,254.03,253.91,72.80620353]
[1737823662481,9.60699527,254.03,253.91,8.66113798]
[1737823662679,3.9375,254.01,253.96,8.66113798]
[1737823662882,9.60699527,254.03,253.93,8.66113798]
[1737823663080,9.60699527,254.03,253.96,4.83453117]
[1737823663277,3.938,253.97,253.96,4.83453117]
[1737823663581,0.03018074,254.02,253.96,4.83453117]
[1737823663885,3.9378,253.99,253.94,8.69084249]
[1737823664085,0.03018074,254.02,253.94,8.69084249]
[1737823664288,0.03018074,254.02,253.94,13.52537366]
[1737823664986,3.9376,254.0,253.95,73.00077073]
[1737823665286,0.03018074,254.02,253.95,73.00077073]
[1737823665287,0.03018074,254.02,253.95,8.66113798]
[1737823665784,0.03018074,254.02,253.95,13.5734224]
[1737823665985,0.03018074,254.02,253.95,4.83453117]
[1737823666181,3.9376,254.0,253.95,4.83453117]
[1737823666381,0.03018074,254.02,253.94,13.60312691]
[1737823666581,0.03018074,254.02,253.96,8.73889123]
[1737823667085,0.03018074,254.02,253.96,4.83453117]
[1737823667787,0.03018074,254.02,253.98,8.79883427]
[1737823667986,0.03018074,254.02,253.99,73.11529473]
[1737823668187,0.03018074,254.02,253.99,8.79883427]
[1737823668389,0.03018074,254.02,253.98,8.79883427]
[1737823668590,0.03018074,254.02,253.99,62.11967743]
[1737823668889,3.9357,254.12,254.05,3.9367]
[1737823669092,9.60699527,254.19,254.04,8.78706378]
[1737823669286,9.60699527,254.19,254.07,13.62159495]
[1737823669490,9.60699527,254.15,254.07,13.62159495]
[1737823669689,9.60699527,254.15,254.07,4.83453117]
[1737823669991,0.02549943,254.14,254.08,0.02936699]
[1737823670290,3.9362,254.09,254.08,6.699e-05]
[1737823671986,0.02549943,254.14,254.08,6.699e-05]
[1737823672794,9.60699527,254.23,254.09,32.15904937]
[1737823672989,9.60699527,254.23,254.1,37.03526649]
[1737823673183,9.60699527,254.23,254.11,26.3211862]
[1737823673488,9.60699527,254.19,254.12,26.30971903]
[1737823673690,9.60699527,254.19,254.11,1.2484]
[1737823673890,0.02816881,254.18,254.13,0.02987237]
[1737823675898,3.9352,254.15,254.13,0.02987237]
[1737823676290,0.02816881,254.18,254.13,0.02987237]
[1737823676797,9.60699527,254.23,254.13,0.02987237]
[1737823677099,3.9349,254.18,254.13,0.02987237]
[1737823677296,9.60699527,254.23,254.13,0.02987237]
[1737823677598,3.9344,254.2,254.13,0.02987237]
[1737823677796,0.02696229,254.21,254.13,0.02987237]
[1737823680393,9.60699527,254.31,254.13,9.63686764]
[1737823680597,3.9338,254.24,254.16,3.9349]
[1737823680798,9.60699527,254.27,254.11,1.2484]
[1737823681396,3.9345,254.2,254.14,3.9354]
[1737823681705,0.02808127,254.22,254.16,0.02819979]
[1737823682004,3.9348,254.18,254.16,0.02819979]
[1737823682706,3.9346,254.2,254.16,0.02819979]
[1737823682899,0.02808127,254.22,254.16,0.02819979]
[1737823683104,9.60699527,254.48,254.21,9.60699527]
[1737823683405,9.60699527,254.48,254.31,9.60699527]
[1737823684001,3.9306,254.45,254.33,3.9324]
[1737823684204,0.02767294,254.42,254.37,0.02633362]
[1737823684808,0.02767294,254.42,254.37,3.95803362]
[1737823685608,0.02767294,254.42,254.38,3.9315]
[1737823686406,3.9294,254.53,254.39,9.60699527]
[1737823686706,9.60699527,254.58,254.43,9.60699527]
[1737823687099,9.60699527,254.53,254.38,9.60699527]
[1737823687705,0.02564657,254.48,254.43,0.02958018]
[1737823688098,9.60699527,254.57,254.42,9.60699527]
[1737823688302,0.02488854,254.48,254.43,0.02713512]
[1737823688508,1.2652,254.59,254.43,0.02713512]
[1737823688700,1.2652,254.59,254.48,3.9301]
[1737823688900,9.60699527,254.61,254.46,9.60699527]
[1737823689298,3.9284,254.6,254.5,3.9297]
[1737823689502,9.60699527,254.57,254.43,2.5387]
[1737823689701,9.60699527,254.57,254.52,0.02666457]
[1737823690099,9.60699527,254.53,254.52,0.02666457]
[1737823690901,13.53629527,254.53,254.52,0.02666457]
[1737823692010,13.56594541,254.57,254.52,0.02666457]
[1737823692206,9.63714541,254.57,254.52,0.02666457]
[1737823693511,0.03015014,254.57,254.52,0.02666457]
[1737823694502,3.95895014,254.57,254.52,0.02666457]
[1737823695109,0.03015014,254.57,254.52,0.02666457]